[Event "Hungarian Youth-ch I 2024"]
[Site "Szolnok"]
[Date "2024.04.05"]
[Round "7.11"]
[White "Feher, Botond"]
[Black "Sinoros-Szabo, Daniel"]
[Result "1-0"]
[ECO "E91"]
[WhiteElo "2018"]
[BlackElo "1971"]
[Annotator "RC"]
[PlyCount "101"]
[EventDate "2024.03.31"]
[EventType "swiss"]
[EventCountry "HUN"]
[SourceTitle "playchess.com"]
[Source "ChessBase"]
[SourceQuality "1"]
[TimeControl "5400+30"]

1. d4 {[%emt 0:00:13]} Nf6 {[%emt 0:00:14]} 2. Nf3 {[%emt 0:00:26]} g6 {[%emt 0:00:06]} 3. c4 {[%emt 0:00:22]} Bg7 {[%emt 0:00:28]} 4. Nc3 {[%emt 0:00:47]} O-O {[%emt 0:00:18]} 5. e4 {[%emt 0:01:10]} d6 {[%emt 0:00:06]} 6. Be2 {[%emt 0:00:21]} Nbd7 {[%emt 0:00:55]} 7. Be3 {[%emt 0:00:28]} e5 {[%emt 0:02:13]} 8. d5 {[%emt 0:00:08]} Nc5 {[%emt 0:01:11]} 9. Nd2 {[%emt 0:00:09]} a5 {[%emt 0:00:49]} 10. a3 {[%emt 0:00:10]} Ne8 {[%emt 0:06:12]} 11. b4 {[%emt 0:00:23]} Nd7 {[%emt 0:02:20]} 12. Nb3 {[%emt 0:18:08]} b6 {[%emt 0:03:49]} 13. bxa5 {[%emt 0:19:48]} bxa5 {[%emt 0:01:07]} 14. c5 {[%emt 0:02:27]} Nxc5 {[%emt 0:06:30]} 15. Nxc5 {[%emt 0:00:26]} dxc5 {[%emt 0:00:11]} 16. Bxc5 {[%emt 0:02:46]} Nd6 {[%emt 0:01:20]} 17. O-O {[%emt 0:04:28]} f5 {[%emt 0:06:54]} 18. f3 {[%emt 0:04:47]} Bd7 {[%emt 0:15:55]} 19. Rb1 {[%emt 0:04:30]} Bh6 {[%emt 0:11:48]} 20. Kh1 {[%emt 0:05:36]} Bf4 {[%emt 0:12:11]} 21. a4 {[%emt 0:03:04]} Qh4 {[%emt 0:02:23]} 22. Bg1 {[%emt 0:00:29]} Rab8 {[%emt 0:02:10]} 23. Qd3 {[%emt 0:05:58]} Rb4 {[%emt 0:04:48]} 24. Rxb4 {[%emt 0:04:21]} axb4 {[%emt 0:00:06]} 25. Nb5 {[%emt 0:01:23]} Bxb5 {[%emt 0:02:35]} 26. axb5 {[%emt 0:00:02]} Ne8 {[%emt 0:02:07]} 27. Qc4 {[%emt 0:16:32]} Nf6 {[%emt 0:13:03]} 28. g3 {[%emt 0:00:06]} Bxg3 {[%emt 0:01:08]} 29. exf5 {[%emt 0:01:15]} Kg7 {[%emt 0:00:47]} 30. fxg6 {[%emt 0:01:34]} hxg6 {[%emt 0:00:19]} 31. Qxh4 {[%emt 0:01:40]} Bxh4 {[%emt 0:00:04]} 32. Bc4 {[%emt 0:00:12]} Ne8 {[%emt 0:00:56]} 33. Be2 {[%emt 0:02:06]} Be7 {[%emt 0:00:47]} 34. Kg2 {[%emt 0:00:43]} Bd6 {[%emt 0:00:27]} 35. Be3 {[%emt 0:00:21]} Nf6 {[%emt 0:00:30]} 36. Bc4 {[%emt 0:00:13]} Ra8 {[%emt 0:00:23]} 37. Rb1 {[%emt 0:00:23]} Nd7 {[%emt 0:00:43]} 38. Bd3 {[%emt 0:00:56]} Ra3 {[%emt 0:00:26]} 39. Rd1 {[%emt 0:00:11]} Nf6 {[%emt 0:00:38]} 40. Bc1 {[%emt 0:00:18]} Ra2+ {[%emt 0:00:20]} 41. Kh1 {[%emt 0:00:48]} Nxd5 {[%emt 0:00:40]} 42. Bc4 {[%emt 0:00:07]} Nc3 {[%emt 0:00:10]} 43. Rxd6 {[%emt 0:00:21]} Ra1 {[%emt 0:00:58]} 44. Rd7+ {[%emt 0:00:04]} Kf8 {[%emt 0:00:34]} 45. Rf7+ {[%emt 0:00:15]} Ke8 {[%emt 0:00:12]} 46. Rxc7 {[%emt 0:00:05]} Rxc1+ {[%emt 0:00:05]} 47. Kg2 {[%emt 0:00:04]} Nd5 {[%emt 0:01:01]} 48. b6 {[%emt 0:01:16]} Nxb6 {[%emt 0:00:54]} 49. Bb5+ {[%emt 0:00:09]} Kd8 {[%emt 0:00:12]} 50. Rxc1 {[%emt 0:00:05]} Ke7 {[%emt 0:00:09]} 51. Bc4 {[%emt 0:00:11]} 1-0

[Event "Hungarian Youth-ch I 2024"]
[Site "Szolnok"]
[Date "2024.04.05"]
[Round "7.12"]
[White "Jokai, Bence"]
[Black "Lehocz, Jozsef Jr."]
[Result "0-1"]
[ECO "B76"]
[WhiteElo "1750"]
[BlackElo "2143"]
[Annotator "RC"]
[PlyCount "148"]
[EventDate "2024.03.31"]
[EventType "swiss"]
[EventCountry "HUN"]
[SourceTitle "playchess.com"]
[Source "ChessBase"]
[SourceQuality "1"]
[TimeControl "5400+30"]

1. e4 {[%emt 0:00:01]} c5 {[%emt 0:00:28]} 2. Nf3 {[%emt 0:00:06]} d6 {[%emt 0:00:35]} 3. d4 {[%emt 0:00:06]} cxd4 {[%emt 0:00:10]} 4. Nxd4 {[%emt 0:00:08]} Nf6 {[%emt 0:00:09]} 5. Nc3 {[%emt 0:00:05]} g6 {[%emt 0:00:20]} 6. Be3 {[%emt 0:00:11]} Bg7 {[%emt 0:00:07]} 7. f3 {[%emt 0:00:16]} O-O {[%emt 0:00:09]} 8. Qd2 {[%emt 0:00:05]} Nc6 {[%emt 0:00:16]} 9. g4 {[%emt 0:00:08]} Be6 {[%emt 0:02:49]} 10. h4 {[%emt 0:01:01]} d5 {[%emt 0:07:42]} 11. Nxe6 {[%emt 0:03:42]} fxe6 {[%emt 0:00:07]} 12. O-O-O {[%emt 0:08:29]} d4 {[%emt 0:02:07]} 13. Bxd4 {[%emt 0:04:46]} Qxd4 {[%emt 0:00:40]} 14. Qxd4 {[%emt 0:00:18]} Nxd4 {[%emt 0:00:05]} 15. Rxd4 {[%emt 0:00:35]} Nxg4 {[%emt 0:00:46]} 16. Rd7 {[%emt 0:03:38]} Nf2 {[%emt 0:00:57]} 17. Rg1 {[%emt 0:02:37]} Rxf3 {[%emt 0:03:45]} 18. Bc4 {[%emt 0:04:51]} Kf7 {[%emt 0:18:07]} 19. Rf1 {[%emt 0:20:06]} Bxc3 {[%emt 0:06:50]} 20. bxc3 {[%emt 0:00:22]} Rc8 {[%emt 0:22:41]} 21. Be2 {[%emt 0:13:25]} Rf4 {[%emt 0:01:41]} 22. Rxb7 {[%emt 0:08:54]} e5 {[%emt 0:04:23]} 23. Rxa7 {[%emt 0:04:29]} Rxc3 {[%emt 0:03:44]} 24. Kb2 {[%emt 0:01:29]} Nxe4 {[%emt 0:10:14]} 25. Ra4 {[%emt 0:06:39]} Re3 {[%emt 0:05:52]} 26. Rxf4+ {[%emt 0:02:44]} exf4 {[%emt 0:00:05]} 27. Bd3 {[%emt 0:00:46]} Nd6 {[%emt 0:02:10]} 28. Rxf4+ {[%emt 0:00:15]} Ke6 {[%emt 0:00:20]} 29. a4 {[%emt 0:01:14]} Kd5 {[%emt 0:00:28]} 30. a5 {[%emt 0:02:55]} e5 {[%emt 0:02:16]} 31. Rb4 {[%emt 0:01:23]} e4 {[%emt 0:03:17]} 32. Bf1 {[%emt 0:02:51]} Rf3 {[%emt 0:01:31]} 33. Bg2 {[%emt 0:00:58]} Rf7 {[%emt 0:00:28]} 34. Kc3 {[%emt 0:01:10]} Ra7 {[%emt 0:00:49]} 35. Rd4+ {[%emt 0:01:20]} Ke5 {[%emt 0:00:10]} 36. Ra4 {[%emt 0:01:03]} h6 {[%emt 0:00:20]} 37. Kb4 {[%emt 0:01:12]} g5 {[%emt 0:00:40]} 38. Kc5 {[%emt 0:00:06]} e3 {[%emt 0:00:35]} 39. Kb6 {[%emt 0:00:51]} Nc8+ {[%emt 0:00:03]} 40. Kc5 {[%emt 0:00:04]} Nd6 {[%emt 0:00:06]} 41. Kb6 {[%emt 0:00:04]} Nc8+ {[%emt 0:00:04]} 42. Kc5 {[%emt 0:00:06]} gxh4 {[%emt 0:00:54]} 43. Rxh4 {[%emt 0:01:15]} Rxa5+ {[%emt 0:00:06]} 44. Kb4 {[%emt 0:00:06]} Ra2 {[%emt 0:00:44]} 45. Re4+ {[%emt 0:00:29]} Kf5 {[%emt 0:01:36]} 46. Kb3 {[%emt 0:00:14]} Nd6 {[%emt 0:00:35]} 47. Rxe3 {[%emt 0:00:30]} Ra7 {[%emt 0:00:51]} 48. Rh3 {[%emt 0:01:08]} Kg5 {[%emt 0:00:50]} 49. Bf3 {[%emt 0:01:03]} Nf5 {[%emt 0:00:24]} 50. Bd1 {[%emt 0:01:42]} Rb7+ {[%emt 0:00:12]} 51. Kc3 {[%emt 0:00:32]} Ng7 {[%emt 0:00:32]} 52. Rg3+ {[%emt 0:00:27]} Kf6 {[%emt 0:00:05]} 53. Rh3 {[%emt 0:00:13]} Kg5 {[%emt 0:00:11]} 54. Rg3+ {[%emt 0:00:04]} Kf4 {[%emt 0:00:15]} 55. Rg6 {[%emt 0:00:20]} h5 {[%emt 0:00:12]} 56. Rxg7 {[%emt 0:00:19]} Rxg7 {[%emt 0:00:04]} 57. Bxh5 {[%emt 0:00:04]} Ke5 {[%emt 0:00:41]} 58. Be2 {[%emt 0:00:20]} Rb7 {[%emt 0:00:48]} 59. Bf1 {[%emt 0:00:29]} Rb8 {[%emt 0:00:21]} 60. Be2 {[%emt 0:00:18]} Kd5 {[%emt 0:00:06]} 61. Kd3 {[%emt 0:00:19]} Kc5 {[%emt 0:00:01]} 62. Kc3 {[%emt 0:00:08]} Rb4 {[%emt 0:00:32]} 63. Kd3 {[%emt 0:00:14]} Ra4 {[%emt 0:00:07]} 64. Kc3 {[%emt 0:00:30]} Ra3+ {[%emt 0:00:08]} 65. Kd2 {[%emt 0:00:15]} Kd4 {[%emt 0:00:05]} 66. Bd3 {[%emt 0:00:10]} Rc3 {[%emt 0:00:24]} 67. Bg6 {[%emt 0:00:11]} Rg3 {[%emt 0:00:06]} 68. Bd3 {[%emt 0:00:12]} Rg2+ {[%emt 0:00:35]} 69. Be2 {[%emt 0:00:12]} Rh2 {[%emt 0:00:22]} 70. Ke1 {[%emt 0:01:19]} Ke3 {[%emt 0:00:14]} 71. Kf1 {[%emt 0:00:47]} Rf2+ {[%emt 0:00:04]} 72. Ke1 {[%emt 0:00:24]} Rxe2+ {[%emt 0:00:05]} 73. Kd1 {[%emt 0:00:02]} Rh2 {[%emt 0:00:10]} 74. Kc1 {[%emt 0:00:06]} Kd4 {[%emt 0:00:04]} 0-1

[Event "Hungarian Youth-ch I 2024"]
[Site "Szolnok"]
[Date "2024.04.05"]
[Round "7.13"]
[White "Kovacs, Kristof"]
[Black "Janosi, Bence"]
[Result "1/2-1/2"]
[ECO "D02"]
[WhiteElo "2000"]
[BlackElo "1893"]
[Annotator "RC"]
[PlyCount "83"]
[EventDate "2024.03.31"]
[EventType "swiss"]
[EventCountry "HUN"]
[SourceTitle "playchess.com"]
[Source "ChessBase"]
[SourceQuality "1"]
[TimeControl "5400+30"]

1. d4 {[%emt 0:00:03]} d5 {[%emt 0:00:02]} 2. Nf3 {[%emt 0:00:18]} Nf6 {[%emt 0:00:09]} 3. g3 {[%emt 0:00:26]} e6 {[%emt 0:00:15]} 4. Bg2 {[%emt 0:00:08]} b5 {[%emt 0:00:30]} 5. O-O {[%emt 0:00:21]} Bb7 {[%emt 0:04:31]} 6. Nbd2 {[%emt 0:02:16]} c5 {[%emt 0:05:05]} 7. dxc5 {[%emt 0:00:14]} Bxc5 {[%emt 0:01:20]} 8. Nb3 {[%emt 0:00:30]} Bb6 {[%emt 0:00:33]} 9. a4 {[%emt 0:06:55]} bxa4 {[%emt 0:04:36]} 10. Rxa4 {[%emt 0:00:14]} Nbd7 {[%emt 0:02:10]} 11. Bd2 {[%emt 0:04:43]} Ne4 {[%emt 0:06:15]} 12. Ba5 {[%emt 0:02:07]} O-O {[%emt 0:05:10]} 13. Nfd2 {[%emt 0:01:56]} Nec5 {[%emt 0:02:55]} 14. Bxb6 {[%emt 0:00:24]} Qxb6 {[%emt 0:06:45]} 15. Rh4 {[%emt 0:05:17]} Rfc8 {[%emt 0:06:39]} 16. c3 {[%emt 0:05:28]} a5 {[%emt 0:05:48]} 17. Qc2 {[%emt 0:01:54]} Nf6 {[%emt 0:01:30]} 18. Ra1 {[%emt 0:01:33]} Bc6 {[%emt 0:07:57]} 19. Nxc5 {[%emt 0:03:41]} Qxc5 {[%emt 0:00:15]} 20. Ra3 {[%emt 0:04:36]} Bd7 {[%emt 0:09:19]} 21. e4 {[%emt 0:05:10]} g5 {[%emt 0:05:40]} 22. Rh3 {[%emt 0:03:13]} e5 {[%emt 0:01:29]} 23. Rh6 {[%emt 0:00:33]} Kg7 {[%emt 0:05:19]} 24. Rxf6 {[%emt 0:00:08]} Kxf6 {[%emt 0:00:21]} 25. exd5 {[%emt 0:00:07]} Kg7 {[%emt 0:02:44]} 26. Ne4 {[%emt 0:00:43]} Qe7 {[%emt 0:00:21]} 27. d6 {[%emt 0:00:38]} Qd8 {[%emt 0:00:10]} 28. Qd2 {[%emt 0:00:10]} f6 {[%emt 0:00:46]} 29. h4 {[%emt 0:01:39]} h6 {[%emt 0:01:15]} 30. Qe3 {[%emt 0:02:50]} Bc6 {[%emt 0:01:33]} 31. Rb3 {[%emt 0:02:39]} Rab8 {[%emt 0:07:46]} 32. Rxb8 {[%emt 0:02:04]} Rxb8 {[%emt 0:00:25]} 33. Qc5 {[%emt 0:03:34]} Qb6 {[%emt 0:04:50]} 34. d7 {[%emt 0:01:24]} Qxc5 {[%emt 0:00:38]} 35. Nxc5 {[%emt 0:00:06]} Bxd7 {[%emt 0:02:19]} 36. Nxd7 {[%emt 0:00:51]} Rxb2 {[%emt 0:00:05]} 37. hxg5 {[%emt 0:00:09]} hxg5 {[%emt 0:00:20]} 38. Nc5 {[%emt 0:00:30]} Rc2 {[%emt 0:00:30]} 39. Na4 {[%emt 0:00:08]} Rc1+ {[%emt 0:00:30]} 40. Kh2 {[%emt 0:00:58]} Rc2 {[%emt 0:00:21]} 41. Kg1 {[%emt 0:01:52]} Rc1+ {[%emt 0:00:04]} 42. Kh2 {[%emt 0:00:54]} 1/2-1/2

[Event "Hungarian Youth-ch I 2024"]
[Site "Szolnok"]
[Date "2024.04.05"]
[Round "7.14"]
[White "Kasa, Barnabas"]
[Black "Horvath, Andras"]
[Result "0-1"]
[ECO "C50"]
[WhiteElo "1803"]
[BlackElo "2260"]
[Annotator "RC"]
[PlyCount "82"]
[EventDate "2024.03.31"]
[EventType "swiss"]
[EventCountry "HUN"]
[SourceTitle "playchess.com"]
[Source "ChessBase"]
[SourceQuality "1"]
[TimeControl "5400+30"]

1. e4 {[%emt 0:00:17]} e5 {[%emt 0:00:04]} 2. Nf3 {[%emt 0:00:45]} Nc6 {[%emt 0:00:05]} 3. Bc4 {[%emt 0:00:51]} Nf6 {[%emt 0:00:08]} 4. d3 {[%emt 0:00:37]} Bc5 {[%emt 0:00:27]} 5. c3 {[%emt 0:00:45]} d6 {[%emt 0:00:16]} 6. O-O {[%emt 0:02:03]} a6 {[%emt 0:00:32]} 7. Bb3 {[%emt 0:00:18]} h6 {[%emt 0:07:15]} 8. Nbd2 {[%emt 0:01:50]} O-O {[%emt 0:00:33]} 9. h3 {[%emt 0:00:58]} Ba7 {[%emt 0:05:37]} 10. Re1 {[%emt 0:02:34]} Re8 {[%emt 0:03:54]} 11. Nf1 {[%emt 0:14:44]} Be6 {[%emt 0:02:49]} 12. Ng3 {[%emt 0:02:53]} d5 {[%emt 0:17:13]} 13. Qe2 {[%emt 0:01:27]} dxe4 {[%emt 0:05:24]} 14. dxe4 {[%emt 0:00:36]} Bxb3 {[%emt 0:00:23]} 15. axb3 {[%emt 0:00:07]} Qd7 {[%emt 0:08:07]} 16. Rd1 {[%emt 0:07:07]} Qe6 {[%emt 0:00:23]} 17. Nf5 {[%emt 0:03:31]} Nh5 {[%emt 0:06:46]} 18. N3h4 {[%emt 0:05:44]} Nf4 {[%emt 0:01:54]} 19. Bxf4 {[%emt 0:03:54]} exf4 {[%emt 0:00:10]} 20. Qg4 {[%emt 0:00:26]} g5 {[%emt 0:04:06]} 21. Nf3 {[%emt 0:02:08]} Qg6 {[%emt 0:08:44]} 22. Rd5 {[%emt 0:04:42]} f6 {[%emt 0:04:51]} 23. N3h4 {[%emt 0:10:45]} Qh7 {[%emt 0:01:20]} 24. Rd7 {[%emt 0:04:15]} Ne7 {[%emt 0:00:41]} 25. Nxe7+ {[%emt 0:07:10]} Rxe7 {[%emt 0:00:14]} 26. Rad1 {[%emt 0:01:16]} h5 {[%emt 0:04:32]} 27. Rxe7 {[%emt 0:05:21]} hxg4 {[%emt 0:02:45]} 28. Rxh7 {[%emt 0:00:07]} Kxh7 {[%emt 0:00:15]} 29. Rd7+ {[%emt 0:01:30]} Kg8 {[%emt 0:01:04]} 30. Nf5 {[%emt 0:01:19]} g3 {[%emt 0:00:44]} 31. Nd4 {[%emt 0:01:35]} Re8 {[%emt 0:08:15]} 32. f3 {[%emt 0:07:25]} f5 {[%emt 0:00:18]} 33. Kf1 {[%emt 0:01:24]} fxe4 {[%emt 0:00:16]} 34. Rxc7 {[%emt 0:02:55]} Bxd4 {[%emt 0:01:27]} 35. cxd4 {[%emt 0:00:06]} exf3 {[%emt 0:00:14]} 36. gxf3 {[%emt 0:00:39]} Re3 {[%emt 0:00:31]} 37. Rxb7 {[%emt 0:03:05]} Rxf3+ {[%emt 0:00:15]} 38. Kg1 {[%emt 0:00:10]} Rd3 {[%emt 0:01:15]} 39. Rb6 {[%emt 0:00:27]} f3 {[%emt 0:00:34]} 40. Rg6+ {[%emt 0:00:40]} Kf7 {[%emt 0:00:19]} 41. Rxg5 {[%emt 0:00:08]} Rd1# {[%emt 0:00:08]} 0-1

[Event "Hungarian Youth-ch I 2024"]
[Site "Szolnok"]
[Date "2024.04.05"]
[Round "7.15"]
[White "Papai, Mate"]
[Black "Hegedus, Bernat"]
[Result "1/2-1/2"]
[ECO "D43"]
[WhiteElo "1887"]
[BlackElo "1778"]
[Annotator "NA RC"]
[PlyCount "72"]
[EventDate "2024.03.31"]
[EventType "swiss"]
[EventCountry "HUN"]
[SourceTitle "playchess.com"]
[Source "ChessBase"]
[SourceQuality "1"]
[TimeControl "5400+30"]

1. d4 {[%emt 0:00:15]} d5 {[%emt 0:00:13]} 2. c4 {[%emt 0:00:20]} e6 {[%emt 0:00:21]} 3. Nc3 {[%emt 0:00:14]} c6 {[%emt 0:00:19]} 4. Nf3 {[%emt 0:00:51]} Nf6 {[%emt 0:00:34]} 5. cxd5 {[%emt 0:00:26]} exd5 {[%emt 0:00:46]} 6. Bg5 {[%emt 0:01:12]} h6 {[%emt 0:01:31]} 7. Bh4 {[%emt 0:01:21]} Bf5 {[%emt 0:01:05]} 8. e3 {[%emt 0:04:08]} Qb6 {[%emt 0:06:01]} 9. Qc1 {[%emt 0:07:30]} Nbd7 {[%emt 0:06:20]} 10. Bxf6 {[%emt 0:06:02] D35: Queen's Gambit Declined: Exchange Variation.} Nxf6 {[%emt 0:02:05]} 11. Ne5 {[%emt 0:01:14]} Bd6 {[%emt 0:06:39]} 12. Bd3 {[%emt 0:02:33]} Bxd3 {[%emt 0:08:13]} 13. Nxd3 {[%emt 0:00:10]} Ne4 {[%emt 0:05:34]} 14. O-O {[%emt 0:03:08]} O-O {[%emt 0:02:22]} 15. Nxe4 {[%emt 0:01:54]} dxe4 {[%emt 0:00:09]} 16. Nc5 {[%emt 0:00:15]} Bxc5 {[%emt 0:09:54]} 17. dxc5 {[%emt 0:02:25]} Qb4 {[%emt 0:05:23]} 18. Rd1 {[%emt 0:11:24]} Rad8 {[%emt 0:02:03]} 19. Qc2 {[%emt 0:01:12]} Rd5 {[%emt 0:05:56]} 20. Rxd5 {[%emt 0:00:18]} cxd5 {[%emt 0:00:05]} 21. a3 {[%emt 0:00:14]} Qb5 {[%emt 0:00:59]} 22. b4 {[%emt 0:02:00]} Rc8 {[%emt 0:04:47]} (22... a5 $11) 23. Rd1 {[%emt 0:03:42]} a5 {[%emt 0:02:52]} 24. Qc3 {[%emt 0:02:41]} (24. h3 $14 {feels stronger.}) 24... b6 $1 {[%emt 0:11:10]} 25. Rxd5 {[%emt 0:01:31]} bxc5 {[%emt 0:01:12]} 26. Rxc5 {[%emt 0:00:15]} Rxc5 {[%emt 0:00:41]} 27. Qxc5 {[%emt 0:00:08]} Qxc5 {[%emt 0:01:16]} 28. bxc5 {[%emt 0:00:32]} Kf8 $11 {[%emt 0:00:08]} 29. Kf1 {[%emt 0:01:02]} Ke7 {[%emt 0:00:08]} 30. Ke2 {[%emt 0:00:18]} Kd7 {[%emt 0:00:31]} 31. Kd2 {[%emt 0:00:55]} Kc6 {[%emt 0:00:38]} 32. Kc3 {[%emt 0:00:26]} Kxc5 {[%emt 0:00:11]} 33. a4 {[%emt 0:00:12]} f5 {[%emt 0:01:01]} 34. g3 {[%emt 0:04:57]} g5 {[%emt 0:02:09]} 35. h4 {[%emt 0:00:50]} Kd5 {[%emt 0:00:37]} 36. h5 {[%emt 0:00:33]} Kc5 {[%emt 0:02:01]} 1/2-1/2

[Event "Hungarian Youth-ch I 2024"]
[Site "Szolnok"]
[Date "2024.04.05"]
[Round "7.16"]
[White "Pergel, Bence"]
[Black "Hangay, Oliver"]
[Result "0-1"]
[ECO "A47"]
[WhiteElo "1752"]
[BlackElo "1962"]
[Annotator "RC"]
[PlyCount "64"]
[EventDate "2024.03.31"]
[EventType "swiss"]
[EventCountry "HUN"]
[SourceTitle "playchess.com"]
[Source "ChessBase"]
[SourceQuality "1"]
[TimeControl "5400+30"]

1. Nf3 {[%emt 0:01:27]} Nf6 {[%emt 0:00:07]} 2. d4 {[%emt 0:00:42]} b6 {[%emt 0:00:04]} 3. c4 {[%emt 0:00:08]} Bb7 {[%emt 0:00:08]} 4. Nc3 {[%emt 0:00:17]} d5 {[%emt 0:00:07]} 5. e3 {[%emt 0:00:49]} e6 {[%emt 0:03:02]} 6. Be2 {[%emt 0:01:31]} Be7 {[%emt 0:00:13]} 7. b3 {[%emt 0:01:03]} O-O {[%emt 0:00:35]} 8. Bb2 {[%emt 0:00:15]} Nbd7 {[%emt 0:00:35]} 9. O-O {[%emt 0:00:16]} c5 {[%emt 0:08:38]} 10. Rc1 {[%emt 0:01:44]} Rc8 {[%emt 0:01:19]} 11. Re1 {[%emt 0:04:46]} cxd4 {[%emt 0:14:48]} 12. Nxd4 {[%emt 0:01:32]} dxc4 {[%emt 0:12:25]} 13. Bxc4 {[%emt 0:03:46]} Ne5 {[%emt 0:02:46]} 14. Be2 {[%emt 0:04:21]} Bb4 {[%emt 0:03:35]} 15. a3 {[%emt 0:02:02]} Bxc3 {[%emt 0:05:00]} 16. Rxc3 {[%emt 0:03:40]} Qd5 {[%emt 0:04:07]} 17. Bf3 {[%emt 0:04:21]} Nxf3+ {[%emt 0:00:49]} 18. Qxf3 {[%emt 0:00:25]} Qd7 {[%emt 0:02:22]} 19. Qe2 {[%emt 0:06:33]} Ne4 {[%emt 0:02:56]} 20. Rcc1 {[%emt 0:04:11]} e5 {[%emt 0:04:18]} 21. Nf3 {[%emt 0:02:14]} f6 {[%emt 0:00:25]} 22. Red1 {[%emt 0:01:25]} Qe6 {[%emt 0:00:13]} 23. b4 {[%emt 0:02:32]} Nd6 {[%emt 0:06:33]} 24. Nd2 {[%emt 0:08:01]} Qa2 {[%emt 0:03:34]} 25. Bc3 {[%emt 0:22:27]} Ne4 {[%emt 0:02:28]} 26. Qd3 {[%emt 0:05:07]} Rfd8 {[%emt 0:01:48]} 27. Bd4 {[%emt 0:08:34]} Rxc1 {[%emt 0:03:01]} 28. Rxc1 {[%emt 0:00:50]} Qxd2 {[%emt 0:00:22]} 29. Qc4+ {[%emt 0:00:28]} Bd5 {[%emt 0:00:14]} 30. Qc7 {[%emt 0:00:22]} Qxf2+ {[%emt 0:00:09]} 31. Kh1 {[%emt 0:00:16]} Ng3+ {[%emt 0:00:04]} 32. hxg3 {[%emt 0:00:16]} Qxg2# {[%emt 0:00:12]} 0-1

[Event "Hungarian Youth-ch I 2024"]
[Site "Szolnok"]
[Date "2024.04.05"]
[Round "7.17"]
[White "Meszaros-Csonka, David"]
[Black "Li, Changxing"]
[Result "1-0"]
[ECO "D00"]
[WhiteElo "1941"]
[BlackElo "1755"]
[Annotator "RC"]
[PlyCount "61"]
[EventDate "2024.03.31"]
[EventType "swiss"]
[EventCountry "HUN"]
[SourceTitle "playchess.com"]
[Source "ChessBase"]
[SourceQuality "1"]
[TimeControl "5400+30"]

1. d4 {[%emt 0:05:41]} d5 {[%emt 0:00:09]} 2. Bf4 {[%emt 0:01:26]} Nf6 {[%emt 0:00:48]} 3. e3 {[%emt 0:00:13]} e6 {[%emt 0:00:24]} 4. Nd2 {[%emt 0:00:06]} c5 {[%emt 0:00:08]} 5. c3 {[%emt 0:00:05]} Nc6 {[%emt 0:00:29]} 6. Ngf3 {[%emt 0:00:07]} cxd4 {[%emt 0:00:45]} 7. exd4 {[%emt 0:00:02]} Nh5 {[%emt 0:00:46]} 8. Be5 {[%emt 0:15:43]} f6 {[%emt 0:00:45]} 9. Bg3 {[%emt 0:03:00]} Nxg3 {[%emt 0:00:40]} 10. hxg3 {[%emt 0:00:01]} Bd6 {[%emt 0:02:26]} 11. Bd3 {[%emt 0:02:50]} f5 {[%emt 0:03:52]} 12. Qe2 {[%emt 0:00:11]} Qf6 {[%emt 0:00:32]} 13. O-O-O {[%emt 0:15:52]} Bd7 {[%emt 0:03:02]} 14. Rde1 {[%emt 0:03:37]} O-O-O {[%emt 0:01:55]} 15. Kb1 {[%emt 0:05:18]} Kb8 {[%emt 0:03:13]} 16. Bb5 {[%emt 0:01:51]} Rde8 {[%emt 0:04:43]} 17. Bxc6 {[%emt 0:02:00]} Bxc6 {[%emt 0:00:21]} 18. Ne5 {[%emt 0:00:48]} Bxe5 {[%emt 0:00:27]} 19. Qxe5+ {[%emt 0:00:13]} Ka8 {[%emt 0:00:38]} 20. Qxf6 {[%emt 0:09:01]} gxf6 {[%emt 0:00:10]} 21. Rh6 {[%emt 0:00:09]} Rhf8 {[%emt 0:02:04]} 22. Rxh7 {[%emt 0:00:14]} e5 {[%emt 0:00:29]} 23. Nf3 {[%emt 0:00:27]} e4 {[%emt 0:09:27]} 24. Nh4 {[%emt 0:01:45]} Bb5 {[%emt 0:02:16]} 25. Rh5 {[%emt 0:10:59]} Bd3+ {[%emt 0:01:59]} 26. Kc1 {[%emt 0:00:18]} Rh8 {[%emt 0:01:48]} 27. Rxh8 {[%emt 0:00:10]} Rxh8 {[%emt 0:00:06]} 28. Nxf5 {[%emt 0:00:34]} Rh2 {[%emt 0:00:11]} 29. Nh4 {[%emt 0:00:34]} a5 {[%emt 0:00:18]} 30. Kd2 {[%emt 0:00:36]} Ka7 {[%emt 0:00:23]} 31. Ke3 1-0

[Event "Hungarian Youth-ch I 2024"]
[Site "Szolnok"]
[Date "2024.04.05"]
[Round "7.18"]
[White "Cser, Matyas"]
[Black "Nagy, Norbert"]
[Result "0-1"]
[ECO "B40"]
[WhiteElo "1420"]
[BlackElo "1629"]
[Annotator "NA RC"]
[PlyCount "62"]
[EventDate "2024.03.31"]
[EventType "swiss"]
[EventCountry "HUN"]
[SourceTitle "playchess.com"]
[Source "ChessBase"]
[SourceQuality "1"]
[TimeControl "5400+30"]

1. e4 {[%emt 0:00:01]} c5 {[%emt 0:00:05]} 2. Nf3 {[%emt 0:00:08]} e6 {[%emt 0:00:05]} 3. Nc3 {[%emt 0:00:08]} Nc6 {[%emt 0:00:15]} 4. Bb5 {[%emt 0:00:14]} a6 {[%emt 0:00:08]} 5. Bxc6 {[%emt 0:00:08]} bxc6 {[%emt 0:00:04]} 6. d3 {[%emt 0:00:17]} Be7 {[%emt 0:00:09]} 7. O-O {[%emt 0:00:59]} Qc7 {[%emt 0:00:53]} 8. Bd2 {[%emt 0:01:17]} Nf6 {[%emt 0:00:42]} 9. Re1 {[%emt 0:00:52]} d5 {[%emt 0:00:27]} 10. Qe2 {[%emt 0:01:41]} d4 {[%emt 0:01:48]} 11. Nd1 {[%emt 0:01:28]} e5 {[%emt 0:00:37]} 12. b3 {[%emt 0:01:12]} h6 {[%emt 0:00:51]} 13. Nb2 {[%emt 0:00:43]} g5 {[%emt 0:01:53]} 14. Nc4 {[%emt 0:04:22]} Bd6 {[%emt 0:02:30]} 15. Ba5 {[%emt 0:04:15]} Qe7 {[%emt 0:01:38]} 16. c3 {[%emt 0:08:19]} Nh5 {[%emt 0:02:49]} 17. Nfd2 {[%emt 0:06:00]} Nf4 {[%emt 0:02:41]} 18. Qf1 {[%emt 0:04:50]} h5 {[%emt 0:00:35]} 19. Nb6 {[%emt 0:03:34]} Rb8 {[%emt 0:00:51]} 20. Nxc8 {[%emt 0:01:16]} Rxc8 {[%emt 0:00:20]} 21. g3 {[%emt 0:04:07]} Ne6 {[%emt 0:01:30]} 22. Nf3 {[%emt 0:03:41]} h4 {[%emt 0:03:47]} 23. Qh3 {[%emt 0:03:58]} Kd7 {[%emt 0:01:33]} 24. g4 {[%emt 0:02:30]} Nf4 {[%emt 0:02:22]} 25. Qf1 {[%emt 0:02:38]} h3 {[%emt 0:00:21]} 26. Kh1 {[%emt 0:01:52]} f6 {[%emt 0:01:25]} 27. Red1 {[%emt 0:01:18]} Qe6 {[%emt 0:00:52]} 28. Qg1 {[%emt 0:01:09]} Ne2 {[%emt 0:00:21]} 29. Qf1 {[%emt 0:04:02]} Qxg4 {[%emt 0:01:34]} 30. cxd4 {[%emt 0:02:33]} Qxf3+ {[%emt 0:00:30]} 31. Qg2 {[%emt 0:01:08]} Qxg2# {[%emt 0:00:08]} 0-1